Workbook

Sheet Single-C
B2: Impedance of a single capacitor
B4: Input data:
B5: C capacitance [F]: | F5: 0.001 | I5: Chart | J5: Sweep
B6: Rs (ESR) reries resistance [ohm]: | F6: 0.01 | I6: Fmin | J6: Min | K6: SRF [Hz]
B7: Skin corner frequency (F_Rs) of Rs [Hz]: | F7: 1000000 | I7: 1 | J7: 1 | K7: =1/(2*PI()*SQRT(L_*C_)) -> 71176.25434
B8: L (ESL) series inductance [H]: | F8: 5e-09 | I8: Fmax | J8: Max | K8: Q:
B9: Dielectric loss Df [-]: | F9: 0.05 | I9: 10000000000 | J9: 2 | K9: =2*PI()*Fres*L_/R_ -> 0.2236067977
B10: fo frequency for C and Df (F_Df) [Hz]: | F10: 100
C87: N_stps | D87: N | E87: N_sweep
C88: 100 | D88: 1 | E88: 100
C89: inc
C90: =10^(LOG(F_mx/F_mn)/(N_stps-1)) -> 1.261856883
D92: [Hz] | N92: [ohms]
C93: n | D93: Frequency | E93: C(f) | F93: Df(f) | G93: G(f) | H93: Ymag | I93: Yphase | J93: Rps | K93: Rs | L93: Rs+Rps | M93: Xcs | N93: |Zc| | O93: Phase
C94: 1 | D94: =F_mn*inc_^(C94-1) -> 1 | E94: =C_*(1-Df_*LN(D94/F_Df)*(LN(10)/PI()/2)) -> 0.001084382329 | F94: =Df_*C_/E94 -> 0.04610919844 | G94: =2*PI()*D94*E94*F94 -> 0.0003141592654 | H94: =SQRT((2*PI()*D94*E94)^2+G94^2) -> 0.006820614089 | I94: =180/PI()*ATAN2(G94,2*PI()*D94*E94) -> 87.3600074 | J94: =1/H94*COS(-PI()/180*I94) -> 6.7530959 | K94: =R_*(1+SQRT(D94/F_sk)) -> 0.01001 | L94: =J94+K94 -> 6.7631059 | M94: =1/H94*SIN(-PI()/180*I94) -> -146.4587572 | N94: =SQRT((L94/N_C)^2+(2*PI()*Freq*(L_/N_C)-1/(2*PI()*Freq*E94*N_C))^2) -> 146.9258749 | O94: =180/PI()*ATAN2(L94,M94+2*PI()*D94*L_) -> -87.35609973
C95: 2 | D95: 1.261856883 | E95: 0.001080120595 | F95: 0.04629112732 | G95: =2*PI()*D95*E95*F95 -> 0.0003964240314 | H95: =SQRT((2*PI()*D95*E95)^2+G95^2) -> 0.008572885763 | I95: =180/PI()*ATAN2(G95,2*PI()*D95*E95) -> 87.34960584 | J95: =1/H95*COS(-PI()/180*I95) -> 5.393937382 | K95: 0.01001123324 | L95: =J95+K95 -> 5.403948615 | M95: =1/H95*SIN(-PI()/180*I95) -> -116.5220571 | N95: 116.8967233 | O95: -87.3446937
C96: 3 | D96: 1.592282793 | E96: 0.001075858862 | F96: 0.04647449752 | G96: 0.0005002303926 | H96: 0.01077516372 | I96: 87.33912206 | J96: 4.308462519 | K96: 0.01001261857 | L96: 4.318475138 | M96: -92.70595162 | N96: 93.00649696 | O96: -87.33294725
C97: 4 | D97: 2.009233003 | E97: 0.001071597128 | F97: 0.04665932625 | G97: 0.000631219164 | H97: 0.01354297099 | I97: 87.32855507 | J97: 3.441535704 | K97: 0.01001417474 | L97: 3.451549879 | M97: -73.75879552 | N97: 73.99991369 | O97: -87.32079301
C98: 5 | D98: 2.535364494 | E98: 0.001067335394 | F98: 0.04684563098 | G98: 0.0007965082468 | H98: 0.01702147511 | I98: 87.31790387 | J98: 2.74913387 | K98: 0.01001592283 | L98: 2.759149793 | M98: -58.68495765 | N98: 58.8784274 | O98: -87.30814653
C99: 6 | D99: 3.199267138 | E99: 0.00106307366 | F99: 0.04703342945 | G99: 0.001005079414 | H99: 0.02139309213 | I99: 87.30716747 | J99: 2.196105779 | K99: 0.0100178865 | L99: 2.206123665 | M99: -46.69244417 | N99: 46.847708 | O99: -87.29490188
C100: 7 | D100: 4.037017259 | E100: 0.001058811926 | F100: 0.04722273971 | G100: 0.001268266376 | H100: 0.02688704013 | I100: 87.29634483 | J100: 1.754383314 | K100: 0.01002009233 | L100: 1.764403406 | M100: -37.15123952 | N100: 37.27586743 | O100: -87.28092611
C101: 8 | D101: 5.094138015 | E101: 0.001054550193 | F101: 0.04741358007 | G101: 0.001600370656 | H101: 0.03379134203 | I101: 87.28543491 | J101: 1.401553561 | K101: 0.0100225702 | L101: 1.411576132 | M101: -29.56017156 | N101: 29.66023266 | O101: -87.26605227
C102: 9 | D102: 6.428073117 | E102: 0.001050288459 | F102: 0.04760596918 | G102: 0.002019438728 | H102: 0.04246790526 | I102: 87.27443665 | J102: 1.11971888 | K102: 0.01002535364 | L102: 1.129744234 | M102: -23.52055634 | N102: 23.60091662 | O102: -87.25007071
C103: 10 | D103: 8.111308308 | E103: 0.001046026725 | F103: 0.04779992595 | G103: 0.002548242659 | H103: 0.05337146662 | I103: 87.26334898 | J103: 0.8945868448 | K103: 0.01002848036 | L103: 0.9046153252 | M103: -18.71523495 | N103: 18.77979601 | O103: -87.23271801
C104: 11 | D104: 10.23531022 | E104: 0.001041764991 | F104: 0.04799546963 | G104: 0.003215517539 | H104: 0.06707339277 | I104: 87.25217079 | J104: 0.7147436954 | K104: 0.01003199267 | L104: 0.7247756881 | M104: -14.89189919 | N104: 14.94378953 | O104: -87.21366314
C105: 12 | D105: 12.91549665 | E105: 0.001037503257 | F105: 0.04819261977 | G105: 0.004057522939 | H105: 0.08429157996 | I105: 87.24090099 | J105: 0.5710742725 | K105: 0.01003593814 | L105: 0.5811102106 | M105: -11.84982836 | N105: 11.8915567 | O105: -87.19248998
C106: 13 | D106: 16.29750835 | E106: 0.001033241524 | F106: 0.04839139626 | G106: 0.005120013249 | H106: 0.1059280157 | I106: 87.22953844 | J106: 0.4562988889 | K106: 0.01004037017 | L106: 0.4663392591 | M106: -9.429339183 | N106: 9.462917361 | O106: -87.16867536
C107: 14 | D107: 20.56512308 | E107: 0.00102897979 | F107: 0.04859181929 | G107: 0.00646072396 | H107: 0.1331159643 | I107: 87.21808198 | J107: 0.3646035567 | K107: 0.01004534879 | L107: 0.3746489055 | M107: -7.503393824 | N107: 7.530435336 | O107: -87.14156133
C108: 15 | D108: 25.95024211 | E108: 0.001024718056 | F108: 0.04879390941 | G108: 0.008152508998 | H108: 0.1672792416 | I108: 87.20653046 | J108: 0.2913447424 | K108: 0.01005094138 | L108: 0.3013956837 | M108: -5.97092436 | N108: 5.992723331 | O108: -87.11032032
C109: 16 | D109: 32.74549163 | E109: 0.001020456322 | F109: 0.04899768752 | G109: 0.01028729959 | H109: 0.210206674 | I109: 87.19488268 | J109: 0.2328136214 | K109: 0.01005722368 | L109: 0.2428708451 | M109: -4.751522638 | N109: 4.769117142 | O109: -87.07391113
C110: 17 | D110: 41.320124 | E110: 0.001016194588 | F110: 0.04920317483 | G110: 0.0129810998 | H110: 0.26414563 | I110: 87.18313744 | J110: 0.1860478384 | K110: 0.01006428073 | L110: 0.1961121191 | M110: -3.781216132 | N110: 3.795438967 | O110: -87.03102355
C111: 18 | D111: 52.14008288 | E111: 0.001011932855 | F111: 0.04941039296 | G111: 0.01638029013 | H111: 0.3319195067 | I111: 87.17129351 | J111: 0.148681193 | K111: 0.01007220809 | L111: 0.1587534011 | M111: -3.009107681 | N111: 3.020627081 | O111: -86.98000844
C112: 19 | D112: 65.79332247 | E112: 0.001007671121 | F112: 0.04961936386 | G112: 0.02066958185 | H112: 0.4170753047 | I112: 87.15934964 | J112: 0.1188236091 | K112: 0.01008111308 | L112: 0.1289047222 | M112: -2.394702387 | N112: 2.404054677 | O112: -86.91878967
C113: 20 | D113: 83.02175681 | E113: 0.001003409387 | F113: 0.04983010987 | G113: 0.02608205413 | H113: 0.5240689919 | I113: 87.14730457 | J113: 0.09496528232 | K113: 0.01009111628 | L113: 0.1050563986 | M113: -1.905781114 | N113: 1.913396911 | O113: -86.84475283
C114: 21 | D114: 104.7615753 | E114: 0.0009991476532 | F114: 0.05004265369 | G114: 0.03291181953 | H114: 0.6584983274 | I114: 87.135157 | J114: 0.07590013364 | K114: 0.0101023531 | L114: 0.08600248674 | M114: -1.516708808 | N114: 1.522934048 | O114: -86.75460501
C115: 22 | D115: 132.1941148 | E115: 0.0009948859194 | F115: 0.05025701844 | G115: 0.041530006 | H115: 0.8273952932 | I115: 87.12290561 | J115: 0.06066467872 | K115: 0.0101149757 | L115: 0.07077965442 | M115: -1.207088693 | N115: 1.212201519 | O115: -86.6441976
C116: 23 | D116: 166.8100537 | E116: 0.0009906241856 | F116: 0.05047322761 | G116: 0.05240492393 | H116: 1.039593383 | I116: 87.11054909 | J116: 0.04848920697 | K116: 0.01012915497 | L116: 0.05861836194 | M116: -0.9606916234 | N116: 0.9649159597 | O116: -86.50830284
C117: 24 | D117: 210.4904145 | E117: 0.0009863624518 | F117: 0.05069130511 | G117: 0.06612751397 | H117: 1.306188906 | I117: 87.09808605 | J117: 0.03875879035 | K117: 0.01014508288 | L117: 0.04890387323 | M117: -0.7646043096 | N117: 0.7681207904 | O117: -86.34033165
C118: 25 | D118: 265.6087783 | E118: 0.000982100718 | F118: 0.05091127527 | G118: 0.08344345866 | H118: 1.641120345 | I118: 87.08551513 | J118: 0.03098214184 | K118: 0.01016297508 | L118: 0.04114511693 | M118: -0.608551675 | N118: 0.6115064626 | O118: -86.13197788
C119: 26 | D119: 335.1602651 | E119: 0.0009778389842 | F119: 0.05113316283 | G119: 0.1052937027 | H119: 2.061895988 | I119: 87.07283492 | J119: 0.02476674262 | K119: 0.01018307383 | L119: 0.03494981644 | M119: -0.4843577289 | N119: 0.4868696535 | O119: -85.87277008
C120: 27 | D120: 422.9242874 | E120: 0.0009735772505 | F120: 0.05135699296 | G120: 0.1328655834 | H120: 2.59050773 | I120: 87.06004399 | J120: 0.0197989753 | K120: 0.01020565123 | L120: 0.03000462653 | M120: -0.3855166387 | N120: 0.3876830121 | O120: -85.54950799
C121: 28 | D121: 533.6699231 | E121: 0.0009693155167 | F121: 0.0515827913 | G121: 0.167657351 | H121: 3.25457868 | I121: 87.04714088 | J121: 0.01582825541 | K121: 0.01023101297 | L121: 0.02605926838 | M121: -0.3068514714 | N121: 0.3087528601 | O121: -85.14555671
C122: 29 | D122: 673.4150658 | E122: 0.0009650537829 | F122: 0.05181058392 | G122: 0.2115595823 | H122: 4.088804345 | I122: 87.03412411 | J122: 0.01265435583 | K122: 0.01025950242 | L122: 0.02291385825 | M122: -0.2442426792 | N122: 0.2459468741 | O122: -84.63996784
C123: 30 | D123: 849.7534359 | E123: 0.0009607920491 | F123: 0.05204039735 | G123: 0.2669579152 | H123: 5.136762448 | I123: 87.02099218 | J123: 0.0101172816 | K123: 0.01029150531 | L123: 0.0204087869 | M123: -0.1944120743 | N123: 0.1959774524 | O123: -84.00639621
C124: 31 | D124: 1072.267222 | E124: 0.0009565303153 | F124: 0.0522722586 | G124: 0.3368626827 | H124: 6.453185643 | I124: 87.00774355 | J124: 0.008089181597 | K124: 0.01032745492 | L124: 0.01841663651 | M124: -0.1547509485 | N124: 0.1562293946 | O124: -83.21178683
C125: 32 | D125: 1353.047775 | E125: 0.0009522685815 | F125: 0.05250619518 | G125: 0.4250724949 | H125: 8.106815423 | I125: 86.99437666 | J125: 0.006467887151 | K125: 0.01036783798 | L125: 0.01683572513 | M125: -0.1231833144 | N125: 0.1246228455 | O125: -82.21482885
C126: 33 | D126: =F_mn*inc_^(C126-1) -> 1707.352647 | E126: =C_*(1-Df_*LN(D126/F_Df)*(LN(10)/PI()/2)) -> 0.0009480068477 | F126: =Df_*C_/E126 -> 0.05274223506 | G126: 0.5363806534 | H126: 10.18398578 | I126: 86.98088992 | J126: 0.005171750158 | K126: =R_*(1+SQRT(D126/F_sk)) -> 0.01041320124 | L126: 0.0155849514 | M126: -0.09805709128 | N126: =SQRT((L126/N_C)^2+(2*PI()*Freq*(L_/N_C)-1/(2*PI()*Freq*E126*N_C))^2) -> 0.09950430489 | O126: =180/PI()*ATAN2(L126,M126+2*PI()*D126*L_) -> -80.96422756
C127: 34 | D127: 2154.43469 | E127: 0.0009437451139 | F127: 0.05298040675 | G127: 0.6768356195 | H127: 12.79312312 | I127: 86.96728171 | J127: 0.004135519249 | K127: 0.01046415888 | L127: 0.01459967813 | M127: -0.0780575217 | N127: 0.07955997008 | O127: -79.39696448
C128: 35 | D128: 2718.588243 | E128: 0.0009394833801 | F128: 0.05322073925 | G128: 0.8540696852 | H128: 16.07039653 | I128: 86.95355039 | J128: 0.003307045126 | K128: 0.01052140083 | L128: 0.01382844595 | M128: -0.06213827866 | N128: 0.06374683374 | O128: -77.4369526
C129: 36 | D129: 3430.469286 | E129: 0.0009352216463 | F129: 0.0534632621 | G129: 1.077713711 | H129: 20.18681231 | I129: 86.93969428 | J129: 0.002644648256 | K129: 0.01058570208 | L129: 0.01323035034 | M129: -0.04946664591 | N129: 0.05123786207 | O129: -74.99493174
C130: 37 | D130: 4328.761281 | E130: 0.0009309599125 | F130: 0.05370800539 | G130: 1.359920464 | H130: 25.35712173 | I130: 86.92571167 | J130: 0.002115015712 | K130: 0.01065793322 | L130: 0.01277294894 | M130: -0.03937989683 | N130: 0.04137826577 | O130: -71.97117483
C131: 38 | D131: 5462.277218 | E131: 0.0009266981787 | F131: 0.05395499975 | G131: 1.716024998 | H131: 31.85100522 | I131: 86.91160083 | J131: 0.001691520726 | K131: 0.0107390722 | L131: 0.01243059293 | M131: -0.03135058352 | N131: 0.03365037874 | O131: -68.26357023
C132: 39 | D132: 6892.612104 | E132: 0.0009224364449 | F132: 0.05420427638 | G132: 2.165377955 | H132: 40.00711418 | I132: 86.89735998 | J132: 0.001352879947 | K132: 0.01083021757 | L132: 0.01218309752 | M132: -0.02495891538 | N132: 0.02764502308 | O132: -63.78445678
C133: 40 | D133: 8697.490026 | E133: 0.0009181747111 | F133: 0.05445586706 | G133: 2.732397077 | H133: 50.25070039 | I133: 86.88298732 | J133: 0.001082080507 | K133: 0.01093260335 | L133: 0.01201468385 | M133: -0.01987077914 | N133: 0.02303756165 | O133: -58.4887444
C134: 41 | D134: 10974.98765 | E134: 0.0009139129773 | F134: 0.05470980415 | G134: 3.447894059 | H134: 63.11574883 | I134: 86.86848102 | J134: 0.0008655226444 | K134: 0.01104761575 | L134: 0.0119131384 | M134: -0.01582024754 | N134: 0.01956733295 | O134: -52.41061954
C135: 42 | D135: 13848.86371 | E135: 0.0009096512435 | F135: 0.05496612065 | G135: 4.35074885 | H135: 79.27276375 | I135: 86.85383919 | J135: 0.0006923345657 | K135: 0.01117681195 | L135: 0.01186914652 | M135: -0.01259565997 | N135: 0.01702008983 | O135: -45.69486341
C136: 43 | D136: 17475.284 | E136: 0.0009053895097 | F136: 0.05522485015 | G136: 5.490022383 | H136: 99.5636509 | I136: 86.83905995 | J136: 0.0005538249135 | K136: 0.01132194115 | L136: 0.01187576606 | M136: -0.01002854534 | N136: 0.01521434698 | O136: -38.59777102
C137: 44 | D137: 22051.3074 | E137: 0.0009011277759 | F137: 0.05548602689 | G137: 6.927622533 | H137: 125.0455071 | I137: 86.82414134 | J137: 0.000443045196 | K137: 0.01148496826 | L137: 0.01192801346 | M137: -0.007984806641 | N137: 0.01399323189 | O137: -31.43901741
C138: 45 | D138: 27825.59402 | E138: 0.0008968660421 | F138: 0.05574968574 | G138: 8.741668176 | H138: 157.0455904 | I138: 86.80908138 | J138: 0.0003544400786 | K138: 0.01166810054 | L138: 0.01202254062 | M138: -0.00635770541 | N138: 0.01322224555 | O138: -24.517957
C139: 46 | D139: 35111.91734 | E139: 0.0008926043083 | F139: 0.05601586228 | G139: 11.03073416 | H139: 197.2303227 | I139: 86.79387807 | J139: 0.0002835678873 | K139: 0.01187381742 | L139: 0.01215738531 | M139: -0.005062278357 | N139: 0.0127907526 | O139: -18.03848895
C140: 47 | D140: 44306.21458 | E140: 0.0008883425745 | F140: 0.05628459272 | G140: 13.91920782 | H140: 247.691907 | I140: 86.77852934 | J140: 0.0002268772167 | K140: 0.01210490414 | L140: 0.01233178136 | M140: -0.004030893815 | N140: 0.01261366604 | O140: -12.07897944
C141: 48 | D141: 55908.10183 | E141: 0.0008840808407 | F141: 0.05655591401 | G141: 17.5640482 | H141: 311.0570488 | I141: 86.76303311 | J141: 0.0001815283774 | K141: 0.01236448941 | L141: 0.01254601779 | M141: -0.00320971521 | N141: 0.01263109733 | O141: -6.607600598
C142: 49 | D142: 70548.02311 | E142: 0.0008798191069 | F142: 0.05682986379 | G142: 22.16331511 | H142: 390.6234236 | I142: 86.74738723 | J142: 0.0001452506743 | K142: 0.01265608778 | L142: 0.01280133846 | M142: -0.00255588637 | N142: 0.01280606254 | O142: -1.5194114
C143: 50 | D143: 89021.50854 | E143: 0.0008755573731 | F143: 0.05710648044 | G143: 27.96693173 | H143: 490.530962 | I143: 86.73158953 | J143: 0.0001162283231 | K143: 0.01298364724 | L143: 0.01309987556 | M143: -0.002035291306 | N143: 0.01312160086 | O143: 3.32645046
C144: 51 | D144: 112332.4033 | E144: 0.0008712956393 | F144: 0.0573858031 | G144: 35.2902653 | H144: 615.9768331 | I144: 86.7156378 | J144: 9.300925505e-05 | K144: 0.01335160265 | L144: 0.01344461191 | M144: -0.001620771167 | N144: 0.01357861134 | O144: 8.078293976
C145: 52 | D145: 141747.4163 | E145: 0.0008670339055 | F145: 0.05766787168 | G145: 44.53126417 | H145: 773.4852636 | I145: 86.69952976 | J145: 7.443221381e-05 | K145: 0.01376493581 | L145: 0.01383936802 | M145: -0.001290705061 | N145: 0.014195136 | O145: 12.87160697
C146: 53 | D146: 178864.9529 | E146: 0.0008627721717 | F146: 0.05795272685 | G146: 56.1920822 | H146: 971.2461733 | I146: 86.68326313 | J146: 5.956847526e-05 | K146: 0.01422924287 | L146: 0.01428881135 | M146: -0.001027880455 | N146: 0.01500728931 | O146: 17.81342104
C147: 54 | D147: 225701.972 | E147: 0.0008585104379 | F147: 0.05824041013 | G147: 70.9063657 | H147: 1219.540161 | I147: 86.66683554 | J147: 4.767525367e-05 | K147: 0.01475081016 | L147: 0.01479848542 | M147: -0.0008185940581 | N147: 0.01607167898 | O147: 22.96868939
C148: 55 | D148: 284803.5868 | E148: 0.0008542487041 | F148: 0.05853096383 | G148: 89.47368561 | H148: 1531.271851 | I148: 86.65024459 | J148: 3.815845031e-05 | K148: 0.01533669923 | L148: 0.01537485768 | M148: -0.0006519361346 | N148: 0.01746892664 | O148: 28.34887248
C149: 56 | D149: 359381.3664 | E149: 0.0008499869703 | F149: 0.05882443113 | G149: 112.902986 | H149: 1922.6392 | I149: 86.63348785 | J149: 3.054286993e-05 | K149: 0.0159948425 | L149: 0.01602538537 | M149: -0.0005192208295 | N149: 0.01930778061 | O149: 33.90607286
C150: 57 | D150: 453487.8508 | E150: 0.0008457252365 | F150: 0.05912085609 | G150: 142.4674101 | H150: 2413.973405 | I150: 86.61656281 | J150: 2.444840701e-05 | K150: 0.01673415066 | L150: 0.01675859906 | M150: -0.0004135326959 | N150: 0.02172943413 | O150: 39.53760876
C151: 58 | D151: 572236.7659 | E151: 0.0008414635027 | F151: 0.05942028364 | G151: 179.773482 | H151: 3030.792867 | I151: 86.59946694 | J151: 1.957100453e-05 | K151: 0.01756463328 | L151: 0.01758420428 | M151: -0.0003293657205 | N151: 0.02491213521 | O151: 45.10371816
C152: 59 | D152: 722080.9018 | E152: 0.0008372017689 | F152: 0.05972275962 | G152: 226.8484057 | H152: 3805.125706 | I152: 86.58219762 | J152: 1.566742823e-05 | K152: 0.01849753436 | L152: 0.01851320179 | M152: -0.0002623359725 | N152: 0.02907688759 | O152: 50.45512354
C153: 60 | D153: 911162.7561 | E153: 0.0008329400351 | F153: 0.06002833084 | G153: 286.2502221 | H153: 4777.169236 | I153: 86.56475223 | J153: 1.254309116e-05 | K153: 0.01954548457 | L153: 0.01955802766 | M153: -0.0002089528558 | N153: 0.03449560338 | O153: 55.46139356
C154: 61 | D154: 1149756.995 | E154: 0.0008286783013 | F154: 0.06033704505 | G154: 361.206813 | H154: 5997.372141 | I154: 86.54712804 | J154: 1.004231726e-05 | K154: 0.02072267222 | L154: 0.02073271454 | M154: -0.0001664370081 | N154: 0.04150312716 | O154: 60.03046027
C155: 62 | D155: 1450828.778 | E155: 0.0008244165675 | F155: 0.06064895099 | G155: 455.7913032 | H155: 7529.046979 | I155: 86.5293223 | J155: 8.040554875e-06 | K155: 0.0220450354 | L155: 0.02205307596 | M155: -0.000132575333 | N155: 0.05051418806 | O155: 64.11488178
C156: 63 | D156: 1830738.28 | E156: 0.0008201548337 | F156: 0.06096409842 | G156: 575.1433932 | H156: 9451.64797 | I156: 86.5113322 | J156: 6.438149537e-06 | K156: 0.02353047775 | L156: 0.0235369159 | M156: -0.0001056055893 | N156: 0.06204598338 | O156: 67.70693897
C157: 64 | D157: 2310129.7 | E157: 0.0008158930999 | F157: 0.06128253812 | G157: 725.7486495 | H157: 11864.88333 | I157: 86.49315486 | J157: 5.1553635e-06 | K157: 0.02519911083 | L157: 0.02520426619 | M157: -8.412451014e-05 | N157: 0.07674709557 | O157: 70.8279757
C158: 65 | D158: =F_mn*inc_^(C158-1) -> 2915053.063 | E158: =C_*(1-Df_*LN(D158/F_Df)*(LN(10)/PI()/2)) -> 0.0008116313661 | F158: =Df_*C_/E158 -> 0.06160432197 | G158: 915.7909287 | H158: 14893.87448 | I158: 86.47478735 | J158: 4.128392292e-06 | K158: =R_*(1+SQRT(D158/F_sk)) -> 0.02707352647 | L158: 0.02707765487 | M158: -6.701465352e-05 | N158: =SQRT((L158/N_C)^2+(2*PI()*Freq*(L_/N_C)-1/(2*PI()*Freq*E158*N_C))^2) -> 0.09543381636 | O158: =180/PI()*ATAN2(L158,M158+2*PI()*D158*L_) -> 73.51695721
C159: 66 | D159: 3678379.772 | E159: 0.0008073696323 | F159: 0.06192950292 | G159: =2*PI()*D159*E159*F159 -> 1155.597087 | H159: =SQRT((2*PI()*D159*E159)^2+G159^2) -> 18695.62844 | I159: =180/PI()*ATAN2(G159,2*PI()*D159*E159) -> 86.45622667 | J159: =1/H159*COS(-PI()/180*I159) -> 3.306178536e-06 | K159: 0.02917910262 | L159: =J159+K159 -> 0.0291824088 | M159: =1/H159*SIN(-PI()/180*I159) -> -5.338616298e-05 | N159: 0.1191355372 | O159: 75.82106637
C160: 67 | D160: 4641588.834 | E160: 0.0008031078985 | F160: 0.06225813504 | G160: 1458.198138 | H160: 23467.15729 | I160: 86.43746975 | J160: 2.647863364e-06 | K160: 0.0315443469 | L160: 0.03154699476 | M160: -4.253039964e-05 | N160: 0.1491515376 | O160: 77.78917506
C161: 68 | D161: 5857020.818 | E161: 0.0007988461647 | F161: 0.06259027358 | G161: 1840.037357 | H161: 29455.66365 | I161: 86.41851348 | J161: 2.120747756e-06 | K161: 0.03420128265 | L161: 0.0342034034 | M161: -3.388302423e-05 | N161: 0.1871222346 | O161: 79.46790428
C162: 69 | D162: 7390722.034 | E162: 0.0007945844309 | F162: 0.06292597496 | G162: 2321.863805 | H162: 36971.31719 | I162: 86.39935467 | J162: 1.698661697e-06 | K162: 0.03718588243 | L162: 0.03718758109 | M162: -2.699460276e-05 | N162: 0.2351187934 | O162: 80.89959761
C163: 70 | D163: 9326033.469 | E163: 0.0007903226971 | F163: 0.0632652968 | G163: 2929.859823 | H163: 46403.28103 | I163: 86.37999005 | J163: 1.360659518e-06 | K163: 0.04053855509 | L163: 0.04053991575 | M163: -2.1507202e-05 | N163: 0.295756011 | O163: 82.12154221
C164: 71 | D164: 11768119.52 | E164: 0.0007860609633 | F164: 0.063608298 | G164: 3697.063784 | H164: 58239.81367 | I164: 86.3604163 | J164: 1.089976136e-06 | K164: 0.04430469286 | L164: 0.04430578284 | M164: -1.713575383e-05 | N164: 0.3723346442 | O164: 83.16592415
C165: 72 | D165: 14849682.62 | E165: 0.0007817992295 | F165: 0.06395503873 | G165: 4665.165384 | H165: 73093.48223 | I165: 86.34063001 | J165: 8.731919824e-07 | K165: 0.04853528594 | L165: 0.04853615913 | M165: -1.365321638e-05 | N165: 0.4690209467 | O165: 84.06017092
C166: 73 | D166: 18738174.23 | E166: 0.0007775374957 | F166: 0.06430558047 | G166: 5886.77105 | H166: 91732.78524 | I166: 86.32062772 | J166: 6.995648587e-07 | K166: 0.05328761281 | L166: 0.05328831238 | M166: -1.087875817e-05 | N166: 0.591073191 | O166: 84.82746561
C167: 74 | D167: 23644894.13 | E167: 0.0007732757619 | F167: 0.06465998608 | G167: 7428.262568 | H167: 115121.8131 | I167: 86.30040585 | J167: 5.604953378e-07 | K167: 0.0586260158 | L167: 0.0586265763 | M167: -8.668349188e-06 | N167: 0.7451275001 | O167: 85.48730836
C168: 75 | D168: 29836472.4 | E168: 0.0007690140281 | F168: 0.06501831978 | G168: 9373.404251 | H168: 144469.9873 | I168: 86.2799608 | J168: 4.490989896e-07 | K168: 0.06462277218 | L168: 0.06462322128 | M168: -6.907268461e-06 | N168: 0.9395585291 | O168: 86.05605908
C169: 76 | D169: 37649358.07 | E169: 0.0007647522943 | F169: 0.06538064726 | G169: 11827.89467 | H169: 181294.4371 | I169: 86.25928884 | J169: 3.598640736e-07 | K169: 0.07135907273 | L169: 0.0713594326 | M169: -5.504137519e-06 | N169: 1.184934604 | O169: 86.54743002
C170: 77 | D170: 47508101.62 | E170: 0.0007604905605 | F170: 0.06574703566 | G170: 14925.1103 | H170: 227498.2218 | I170: 86.23838618 | J170: 2.883776089e-07 | K170: 0.07892612104 | L170: 0.07892640942 | M170: -4.386168989e-06 | N170: 1.494592053 | O170: 86.97291677
C171: 78 | D171: 59948425.03 | E171: 0.0007562288267 | F171: 0.06611755362 | G171: 18833.35317 | H171: 285468.4201 | I171: 86.21724895 | J171: 2.311061526e-07 | K171: 0.08742636827 | L171: 0.08742659937 | M171: -3.495382693e-06 | N171: 1.88535994 | O171: 87.34216689
C172: 79 | D172: 75646332.76 | E172: 0.0007519670929 | F172: 0.06649227136 | G172: 23764.99633 | H172: 358199.1269 | I172: 86.19587318 | J172: 1.852203521e-07 | K172: 0.09697490026 | L172: 0.09697508548 | M172: -2.785592195e-06 | N172: 2.378474589 | O172: 87.66329072
C173: 80 | D173: 95454845.67 | E173: 0.0007477053591 | F173: 0.0668712607 | G173: 29988.02419 | H173: 449445.678 | I173: 86.17425482 | J173: 1.484545236e-07 | K173: 0.1077009957 | L173: 0.1077011442 | M173: -2.220004857e-06 | N173: 3.000733595 | O173: 87.94312076
C174: 81 | D174: 120450354 | E174: 0.0007434436253 | F174: 0.0672545951 | G174: 37840.59473 | H174: 563918.0199 | I174: 86.15238971 | J174: 1.189942588e-07 | K174: 0.1197498765 | L174: 0.1197499955 | M174: -1.769310463e-06 | N174: 3.785952021 | O174: 88.18742714
C175: 82 | D175: 151991108.3 | E175: 0.0007391818915 | F175: 0.0676423497 | G175: 47749.41492 | H175: 707523.1551 | I175: 86.13027362 | J175: 9.538646173e-08 | K175: 0.1332846739 | L175: 0.1332847693 | M175: -1.410158904e-06 | N175: 4.776799928 | O175: 88.40109569
C176: 83 | D176: 191791026.2 | E176: 0.0007349201577 | F176: 0.06803460141 | G176: 60252.92788 | H176: 887669.1009 | I176: 86.10790221 | J176: 7.646733421e-08 | K176: 0.1484886371 | L176: 0.1484887136 | M176: -1.123947706e-06 | N176: 6.027121077 | O176: 88.588275
C177: 84 | D177: 242012826.5 | E177: 0.000730658424 | F177: 0.06843142892 | G177: 76030.57177 | H177: 1113645.957 | I177: 86.08527103 | J177: 6.130472763e-08 | K177: 0.1655676144 | L177: 0.1655676757 | M177: -8.958563134e-07 | N177: 7.604858803 | O177: 88.75249773
C178: 85 | D178: 305385550.9 | E178: 0.0007263966902 | F178: 0.06883291276 | G178: 95939.70032 | H178: 1397103.618 | I178: 86.06237555 | J178: 4.915199195e-08 | K178: 0.18475284 | L178: 0.1847528892 | M178: -7.140768854e-07 | N178: 9.59574806 | O178: 88.89678065
C179: 86 | D179: 385352859.4 | E179: 0.0007221349564 | F179: 0.06923913537 | G179: 121062.1712 | H179: 1752650.623 | I179: 86.03921111 | J179: 3.941102728e-08 | K179: 0.206304065 | L179: 0.2063041044 | M179: -5.692016093e-07 | N179: 12.10797425 | O179: 89.02370733
C180: 87 | D180: 486260158 | E180: 0.0007178732226 | F180: 0.06965018116 | G180: 152763.134 | H180: 2198604.82 | I180: 86.01577296 | J180: 3.160270144e-08 | K180: 0.230513074 | L180: 0.2305131056 | M180: -4.537346625e-07 | N180: 15.27805202 | O180: 89.13549651
C181: 88 | D181: 613590727.3 | E181: 0.0007136114888 | F181: 0.07006613653 | G181: 192765.2121 | H181: 2757934.289 | I181: 85.99205621 | J181: 2.534316387e-08 | K181: 0.2577076356 | L181: 0.2577076609 | M181: -3.61703458e-07 | N181: 19.27824342 | O181: 89.23405879
C182: 89 | D182: 774263682.7 | E182: 0.000709349755 | F182: 0.07048708997 | G182: 243242.1097 | H182: 3459436.711 | I182: 85.96805589 | J182: 2.032487962e-08 | K182: 0.2882559402 | L182: 0.2882559605 | M182: -2.883489675e-07 | N182: 24.32591862 | O182: 89.32104367
C183: 90 | D183: 977009957.3 | E183: 0.0007050880212 | F183: 0.07091313212 | G183: 306936.7304 | H183: 4339217.513 | I183: 85.94376688 | J183: 1.630144193e-08 | K183: 0.322571585 | L183: 0.3225716013 | M183: -2.298790287e-07 | N183: 30.69536778 | O183: 89.3978788
C184: 91 | D184: 1232846739 | E184: 0.0007008262874 | F184: 0.0713443558 | G184: 387310.226 | H184: 5442542.417 | I184: 85.91918396 | J184: 1.307541009e-08 | K184: 0.3611191734 | L184: 0.3611191865 | M184: -1.832718222e-07 | N184: 38.73270587 | O184: 89.46580275
C185: 92 | D185: 1555676144 | E185: 0.0006965645536 | F185: 0.07178085612 | G185: 488730.0745 | H185: 6826159.118 | I185: 85.89430176 | J185: 1.048856924e-08 | K185: 0.4044206059 | L185: 0.4044206164 | M185: -1.46119311e-07 | N185: 48.87468055 | O185: 89.52589237
C186: 93 | D186: 1963040650 | E186: 0.0006923028198 | F186: 0.07222273053 | G186: 616707.4085 | H186: 8561206.738 | I186: 85.86911479 | J186: 8.414129587e-09 | K186: 0.4530621458 | L186: 0.4530621542 | M186: -1.165025128e-07 | N186: 61.67240491 | O186: 89.57908593
C187: 94 | D187: 2477076356 | E187: 0.000688041086 | F187: 0.07267007889 | G187: 778196.4882 | H187: 10736861.7 | I187: 85.84361744 | J187: 6.75047834e-09 | K187: 0.5077023564 | L187: 0.5077023632 | M187: -9.289212896e-08 | N187: 77.82130486 | O187: 89.6262025
C188: 95 | D188: 3125715850 | E188: 0.0006837793522 | F188: 0.07312300356 | G188: 981972.5951 | H188: 13464906.23 | I188: 85.81780394 | J188: 5.416175162e-09 | K188: 0.5690810183 | L188: 0.5690810237 | M188: -7.406937487e-08 | N188: 98.19890841 | O188: 89.66795839
C189: 96 | D189: 3944206059 | E189: 0.0006795176184 | F189: 0.07358160944 | G189: 1239108.878 | H189: 16885452.55 | I189: 85.79166839 | J189: 4.345943334e-09 | K189: 0.6380291442 | L189: 0.6380291485 | M189: -5.906290128e-08 | N189: 123.9125304 | O189: 89.7049811
C190: 97 | D190: =F_mn*inc_^(C190-1) -> 4977023564 | E190: =C_*(1-Df_*LN(D190/F_Df)*(LN(10)/PI()/2)) -> 0.0006752558846 | F190: =Df_*C_/E190 -> 0.0740460041 | G190: 1563578.067 | H190: 21174115.03 | I190: 85.76520472 | J190: 3.48745838e-09 | K190: 0.7154802311 | L190: 0.7154802346 | M190: -4.709853587e-08 | N190: 156.3594436 | O190: 89.73782114
C191: 98 | D191: =F_mn*inc_^(C191-1) -> 6280291442 | E191: =C_*(1-Df_*LN(D191/F_Df)*(LN(10)/PI()/2)) -> 0.0006709941508 | F191: =Df_*C_/E191 -> 0.07451629786 | G191: 1973011.746 | H191: 26550995.82 | I191: 85.73840673 | J191: 2.798775362e-09 | K191: 0.8024828984 | L191: 0.8024829012 | M191: -3.755923794e-08 | N191: 197.3028065 | O191: 89.76696221
C192: 99 | D192: =F_mn*inc_^(C192-1) -> 7924828984 | E192: =C_*(1-Df_*LN(D192/F_Df)*(LN(10)/PI()/2)) -> 0.000666732417 | F192: =Df_*C_/E192 -> 0.07499260382 | G192: 2489658.452 | H192: 33291942.04 | I192: 85.71126807 | J192: 2.246267699e-09 | K192: 0.9002150854 | L192: 0.9002150877 | M192: -2.995318984e-08 | N192: 248.9674726 | O192: 89.79282981
C193: 100 | D193: =F_mn*inc_^(C193-1) -> 1e+10 | E193: =C_*(1-Df_*LN(D193/F_Df)*(LN(10)/PI()/2)) -> 0.0006624706832 | F193: =Df_*C_/E193 -> 0.07547503802 | G193: 3141592.654 | H193: 41742648.18 | I193: 85.6837822 | J193: 1.802975717e-09 | K193: 1.01 | L193: 1.010000002 | M193: -2.38883711e-08 | N193: 314.1608889 | O193: 89.81579872

Sheet Info
B1: File: Lossy-capacitor-model_WExcel2016-32-64b_v04.xlsm With comments, please contact:
B8: Application information and hints:
B9: 1., This file uses dot (.) as separator between the integer and fractional parts of numbers. Preferences in your Microsoft Excel options must be set or be changed accordingly.
B10: 2., Enter your data in the top left area of the Time_harm worksheet. Select the required input parameter (red) and enter your data in the units shown. Numbers shown in blue indicate output fields. It is not suggested to change these fields unless you understand the implications. Grey buttons with green text indicate sweep buttons. If you click on it, the particular parameter will be swept with respect to its nominal entry, scaled between the Min and Max multiplier fields.
B11: 3., There is no error checking of most of your entered input data. Physically invalid input (e.g., negative dielectric constant) may result in meaningless output.
B12: 4., For explanatory information, see the worksheet "Reference". For suggested input data to explore, use the Data >> What-if Analysis >> Scenario toolbar.
B13: 5., If Automatic Recalculation is selected in the Options >> Formulas menu, numerical and graphical outputs are automatically updated after each new entry.
B14: 6., On slower computers, deselect Automatic Recalculation, and use manual recalculation by pressing F9.
B15: 7., For best viewing, set the current window to display all input output fields and graphs.
B16: 8., The calculation part of the worksheets can be viewed and changed if necessary below the input/output areas. To navigate among cells, you can switch back on the Row and Column Headers and Scroll bars in the Options >> Advanced >> Display menu.
B17: 9., This spreadsheet has been tested on Windows 7 and 10 with 32-bit and 64-bit Excel 2016, with US system settings.

Sheet Reference
B1: Equivalent circuits, and expressions used on the worksheets
B2: The Single-C worksheet assumes frequency-dependent capacitance and dielectric loss tangent, and frequency-dependent series conductor loss and inductance.
B8: Dielectric loss results in frequency-dependent capacitance and loss tangent. If C(fo) capacitance and Df(fo) loss tangent are known at a given fo frequency, C(f) and Df(f) can be calculated from the wide-band Debye model as:
B30: The series resistive losses assume an Rs DC resistance value with an sqrt(f) frequency dependence
B31: with an Fsk skin corner frequency:
B36: The Multiple-C worksheet assumes frequency-independent capacitance, inductance and resistance for all four banks of capacitors.
B37: The complex impedance of the series-equivalent capacitor model:
B43: The absolute value of the impedance:
B45: The admittance of capacitor with the components of series equivalent (R, L, C)

Sheet Copyright
B2: This toolset is copyright, Istvan Novak. All rights reserved. You are hereby granted a limited right to run, copy, and reproduce the toolset for your personal, non-commercial purposes only. By using the file(s), you acknowledge not to run, show or disseminate in any way the toolset in full or in part at public or commercial presentations without the express written consent of the author.
